bitfinex/quotes_ETHUSD_20250903
["timestamp","ask_amount","ask_price","bid_price","bid_amount"]
[1756920822012,10.11516877,4494.6,4494.5,0.001]
[1756920822213,6.30316877,4494.6,4494.5,0.001]
[1756920822430,10.11416877,4494.6,4494.5,0.2864]
[1756920823737,10.11416877,4494.6,4494.5,0.001]
[1756920824037,10.42906877,4494.6,4494.5,0.001]
[1756920825137,10.91286877,4494.6,4494.5,0.001]
[1756920825657,10.42906877,4494.6,4494.5,0.001]
[1756920826943,10.11416877,4494.6,4494.5,0.001]
[1756920828636,10.42306877,4494.6,4494.5,0.001]
[1756920828952,12.14626877,4494.6,4494.5,0.001]
[1756920829653,9.99596877,4494.6,4494.5,0.2864]
[1756920829857,9.99596877,4494.6,4494.5,0.001]
[1756920829858,10.31086877,4494.6,4494.5,0.001]
[1756920830419,11.24206877,4494.6,4494.5,0.001]
[1756920830840,6.50686877,4494.6,4494.5,0.001]
[1756920831143,9.99596877,4494.6,4494.5,0.001]
[1756920831353,10.31086877,4494.6,4494.5,0.001]
[1756920831530,9.99596877,4494.6,4494.5,0.001]
[1756920831844,10.31086877,4494.6,4494.5,0.001]
[1756920832043,7.43806877,4494.6,4494.5,0.001]
[1756920832244,11.24106877,4494.6,4494.5,0.001]
[1756920832618,9.99496877,4494.6,4494.5,0.2864]
[1756920833618,9.99496877,4494.6,4494.5,0.001]
[1756920833818,6.19196877,4494.6,4494.5,0.001]
[1756920834017,9.99296877,4494.6,4494.5,0.2864]
[1756920835025,9.99296877,4494.6,4494.5,0.7567]
[1756920836528,10.30786877,4494.6,4494.5,0.001]
[1756920836733,11.23906877,4494.6,4494.5,0.001]
[1756920837049,10.30786877,4494.6,4494.5,0.001]
[1756920837238,11.23906877,4494.6,4494.5,0.001]
[1756920837439,10.79166877,4494.6,4494.5,0.001]
[1756920837643,12.03106877,4494.6,4494.5,0.001]
[1756920838327,12.03106877,4494.6,4494.0,0.001]
[1756920838328,2.22513962,4494.1,4494.0,0.001]
[1756920838535,11.43716139,4494.1,4494.0,0.001]
[1756920838745,11.75206139,4494.1,4494.0,0.001]
[1756920838958,3.792,4494.0,4493.5,0.001]
[1756920839143,15.66909601,4493.6,4493.5,0.001]
[1756920839458,22.29188189,4493.6,4493.5,0.001]
[1756920839654,23.33428189,4493.6,4493.5,0.001]
[1756920840264,24.12628189,4493.6,4493.5,0.001]
[1756920842157,24.01307284,4493.6,4493.5,0.001]
[1756920842354,23.07987284,4493.6,4493.5,0.001]
[1756920842872,11.52826404,4493.6,4493.5,0.3024]
[1756920844550,7.73026404,4493.6,4493.5,0.3024]
[1756920844760,7.73026404,4493.6,4493.5,0.7653]
[1756920844761,5.81609502,4493.6,4493.5,0.7653]
[1756920844953,9.61409502,4493.6,4493.5,0.7653]
[1756920845162,9.92899502,4493.6,4493.5,0.001]
[1756920845881,9.61409502,4493.6,4493.5,0.001]
[1756920846737,22.10220382,4493.6,4493.5,0.001]
[1756920846944,24.37011179,4493.6,4493.5,0.001]
[1756920849405,24.37011179,4493.6,4492.8,0.025]
[1756920849406,0.792,4493.4,4492.8,1e-08]
[1756920849697,16.57264273,4492.9,4492.8,1e-08]
[1756920849850,22.87505054,4492.9,4492.8,1e-08]
[1756920850046,23.79542543,4492.9,4492.8,1e-08]
[1756920850240,14.28921663,4492.9,4492.8,1e-08]
[1756920850485,24.73292543,4492.9,4492.8,1e-08]
[1756920851105,24.73292543,4492.9,4491.8,0.025]
[1756920851106,8.24356694,4492.8,4491.8,0.025]
[1756920851261,8.24356694,4492.8,4490.8,0.025]
[1756920851262,2.22662599,4491.1,4490.8,0.025]
[1756920851459,9.02462599,4491.1,4490.8,0.025]
[1756920851659,9.02462599,4491.1,4491.0,0.7887]
[1756920852078,9.02462599,4491.1,4491.0,0.7653]
[1756920852302,9.02462599,4491.1,4491.0,1.2516]
[1756920852601,9.02462599,4491.1,4491.0,0.001]
[1756920852602,11.26776398,4491.1,4491.0,0.001]
[1756920852898,12.68390941,4491.1,4491.0,0.001]
[1756920853298,2.22687391,4490.6,4489.8,0.025]
[1756920853508,22.56142814,4490.6,4489.8,0.025]
[1756920853689,22.87632814,4490.6,4489.8,0.025]
[1756920853871,25.16801208,4490.6,4489.8,0.025]
[1756920857303,0.792,4490.4,4489.8,1e-08]
[1756920857504,16.46292989,4489.9,4489.8,1e-08]
[1756920857703,17.36767532,4489.9,4489.8,1e-08]
[1756920857910,22.55465021,4489.9,4489.8,1e-08]
[1756920858200,23.02355021,4489.9,4489.8,1e-08]
[1756920858999,19.33560317,4489.9,4489.8,1e-08]
[1756920859300,23.13360317,4489.9,4489.8,1e-08]
[1756920860226,23.13108701,4489.9,4489.8,1e-08]
[1756920860425,23.13108701,4489.9,4488.8,0.025]
[1756920860426,3.01956838,4489.2,4488.8,0.025]
[1756920860628,3.01956838,4489.2,4488.6,0.001]
[1756920860629,5.22764581,4489.1,4488.6,0.001]
[1756920860831,5.22781651,4488.7,4488.4,0.45978536]
[1756920861127,2.33911578,4488.5,4488.4,0.45978536]
[1756920861315,2.22801506,4488.3,4488.2,0.001]
[1756920861518,11.05191506,4488.3,4488.2,0.001]
[1756920861722,24.36136185,4488.3,4488.2,0.001]
[1756920861900,24.83707624,4488.3,4488.2,0.001]
[1756920862229,23.89957624,4488.3,4488.2,0.001]
[1756920862591,24.36817624,4488.3,4488.2,0.001]
[1756920862790,20.10257624,4488.3,4488.2,0.001]
[1756920863024,20.10257624,4488.3,4488.2,0.3024]
[1756920863025,8.07625305,4488.3,4488.2,0.3024]
[1756920863327,10.84921506,4488.3,4488.2,1.2516]
[1756920863702,10.85021506,4488.3,4488.2,1.2516]
[1756920864026,10.85021506,4488.3,4488.2,0.001]
[1756920864228,7.05121506,4488.3,4488.2,1.2516]
[1756920864429,11.77812814,4488.3,4488.2,0.001]
[1756920864819,12.09302814,4488.3,4488.2,0.001]
[1756920865330,11.77812814,4488.3,4488.2,0.001]
[1756920866037,12.88502814,4488.3,4488.2,0.001]
[1756920866536,0.792,4488.1,4487.8,1e-08]
[1756920866700,6.02021364,4487.9,4487.8,1e-08]
[1756920866901,10.72131689,4487.9,4487.8,1e-08]
[1756920867128,11.65881689,4487.9,4487.8,1e-08]
[1756920867334,12.57919178,4487.9,4487.8,1e-08]
[1756920868332,2.22885926,4486.6,4486.5,0.001]
[1756920868553,10.85305926,4486.6,4486.5,0.001]
[1756920868750,10.85305926,4486.6,4486.5,0.7653]
[1756920868914,11.34062813,4486.6,4486.5,1.2516]
[1756920869114,10.85205926,4486.6,4486.5,1.2516]
[1756920869645,7.05305926,4486.6,4486.5,1.2516]
[1756920869800,10.85305926,4486.6,4486.5,1.2516]
[1756920870003,10.85305926,4486.6,4486.5,0.3024]
[1756920870722,10.85305926,4486.6,4486.5,0.001]
[1756920870905,12.46384403,4486.6,4486.5,0.001]
[1756920871108,13.25584403,4486.6,4486.5,0.001]
[1756920871515,13.71414403,4486.6,4486.5,0.001]
[1756920872246,14.71296731,4486.6,4486.5,0.001]
[1756920872562,13.51696731,4486.6,4486.5,0.001]
[1756920873012,13.81956731,4486.6,4486.5,0.001]
[1756920873215,14.71296731,4486.6,4486.5,0.001]
[1756920873398,9.88448297,4486.6,4486.5,0.001]
[1756920873599,13.98808297,4486.6,4486.5,0.001]
[1756920873833,14.44638297,4486.6,4486.5,0.001]
[1756920874032,14.88148297,4486.6,4486.5,0.001]
[1756920874506,13.51796731,4486.6,4486.5,0.292]
[1756920874802,13.82056731,4486.6,4486.5,0.001]
[1756920875025,24.26427611,4486.6,4486.5,0.001]
[1756920875224,24.69937611,4486.6,4486.5,0.001]
[1756920875548,25.15767611,4486.6,4486.5,0.001]
[1756920876137,24.26427611,4486.6,4486.5,0.001]
[1756920876746,25.32741773,4486.6,4486.5,0.001]
[1756920876909,24.89231773,4486.6,4486.5,0.001]
[1756920877614,24.43401773,4486.6,4486.5,0.001]
[1756920877814,24.13041773,4486.6,4486.5,0.001]
[1756920878258,20.33041773,4486.6,4486.5,0.001]
[1756920878406,13.68570893,4486.6,4486.5,0.001]
[1756920878606,13.68570893,4486.6,4486.5,0.292]
[1756920878607,9.88670893,4486.6,4486.5,0.292]
[1756920878802,13.68570893,4486.6,4486.5,0.001]
[1756920879027,13.98830893,4486.6,4486.5,0.001]
[1756920879228,13.68570893,4486.6,4486.5,0.001]
[1756920879632,9.88670893,4486.6,4486.5,0.292]
[1756920879806,13.68670893,4486.6,4486.5,0.292]
[1756920880006,13.51696731,4486.6,4486.5,0.292]
[1756920880246,13.51696731,4486.6,4486.5,1.1938]
[1756920880247,12.72396731,4486.6,4486.5,1.1938]
[1756920880418,8.92496731,4486.6,4486.5,1.1938]
[1756920880618,12.72396731,4486.6,4486.5,1.1938]
[1756920880818,4.61678254,4486.6,4486.5,1.1938]
[1756920881023,8.41578254,4486.6,4486.5,1.1938]
[1756920881330,7.61678254,4486.6,4486.5,1.1938]
[1756920881533,4.61678254,4486.6,4486.5,1.1938]
[1756920881834,0.58554929,4486.6,4486.5,1.1938]
[1756920882040,5.81440855,4486.6,4486.5,1.1938]
[1756920882344,6.06146348,4486.6,4486.5,0.001]
[1756920882643,9.73176692,4486.6,4486.5,0.001]
[1756920882838,10.19006692,4486.6,4486.5,0.001]
[1756920883249,2.229058,4486.2,4486.1,0.001]
[1756920883446,10.25121183,4486.2,4486.1,0.001]
[1756920883643,10.36241183,4486.2,4486.1,0.001]
[1756920884416,11.15441183,4486.2,4486.1,0.001]
[1756920884836,11.45701183,4486.2,4486.1,0.001]
[1756920885041,12.35041183,4486.2,4486.1,0.001]
[1756920885245,6.02110768,4486.1,4486.0,0.001]
[1756920885546,22.22342527,4486.1,4486.0,0.001]
[1756920885762,22.96112527,4486.1,4486.0,0.001]
[1756920886320,21.76512527,4486.1,4486.0,0.292]
[1756920886522,21.76512527,4486.1,4486.0,0.7396]
[1756920886722,9.50245697,4486.1,4486.0,0.4552]
[1756920886922,9.50245697,4486.1,4486.0,0.001]
[1756920887246,9.50245697,4486.1,4486.0,0.292]
[1756920887414,9.61365697,4486.1,4486.0,0.292]
[1756920887613,23.39219394,4486.1,4486.0,0.001]
[1756920887812,26.45210191,4486.1,4486.0,0.001]
[1756920888054,27.34550191,4486.1,4486.0,0.001]
[1756920888442,26.45210191,4486.1,4486.0,0.001]
[1756920888643,27.34550191,4486.1,4486.0,0.001]
[1756920889061,27.43488728,4486.1,4486.0,0.001]
[1756920889550,26.99978728,4486.1,4486.0,0.001]
[1756920889846,28.59671837,4486.1,4486.0,0.001]
[1756920890049,24.03681837,4486.1,4486.0,0.001]
[1756920890250,22.43988728,4486.1,4486.0,0.29090172]
[1756920890451,2.22915737,4486.0,4485.8,0.025]
[1756920890790,9.94875461,4485.9,4485.8,0.025]
[1756920891354,12.64132459,4485.9,4485.8,0.025]
[1756920891865,2.22930646,4485.7,4485.6,0.001]
[1756920892165,7.52885575,4485.7,4485.6,0.001]
[1756920892534,7.52885575,4485.7,4485.6,0.292]
[1756920892740,8.71311522,4485.7,4485.6,0.292]
[1756920893652,12.51211522,4485.7,4485.6,1.1938]
[1756920894265,8.71311522,4485.7,4485.6,1.1938]
[1756920894467,12.51011522,4485.7,4485.6,0.7396]
[1756920894969,12.51011522,4485.7,4485.6,0.292]
[1756920895165,12.81271522,4485.7,4485.6,0.001]
[1756920895336,2.22955498,4485.2,4485.1,0.001]
[1756920895542,10.05800841,4485.2,4485.1,0.001]
[1756920895728,10.05800841,4485.2,4485.1,0.7396]
[1756920896466,10.05800841,4485.2,4485.1,1.1938]
[1756920896821,10.05800841,4485.2,4485.1,0.292]
[1756920897563,10.06450848,4485.2,4485.1,0.292]
[1756920897872,10.06450848,4485.2,4485.1,0.001]
[1756920898380,10.06450848,4485.2,4485.1,0.28980353]
[1756920898949,5.22960469,4485.1,4485.0,0.001]
[1756920899180,8.18995949,4485.1,4485.0,0.001]
[1756920899375,10.09381426,4485.1,4485.0,0.001]
[1756920899742,2.22970411,4484.9,4484.8,0.025]
[1756920899948,9.61575347,4484.9,4484.8,0.025]
[1756920900166,9.92525347,4484.9,4484.8,0.025]
[1756920900374,10.50595011,4484.9,4484.8,0.025]
[1756920900576,26.07255564,4484.9,4484.8,0.025]
[1756920900877,26.07255564,4484.9,4484.6,0.001]
[1756920900878,6.02180355,4484.7,4484.6,0.001]
[1756920901078,12.00965291,4484.7,4484.6,0.001]
[1756920901266,13.23705291,4484.7,4484.6,0.001]
[1756920901477,8.60891238,4484.7,4484.6,0.2992]
[1756920901786,2.05034759,4485.3,4484.6,1.204]
[1756920901962,0.1112,4484.8,4484.7,0.7834]
[1756920902161,0.1112,4484.8,4484.7,1.0816]
[1756920902487,0.1112,4484.8,4484.7,3.31140355]
[1756920902688,0.1112,4484.8,4484.7,3.6426439]
[1756920902896,0.1112,4485.0,4484.7,3.6426439]
[1756920903059,0.1112,4485.0,4484.8,0.7834]
[1756920903464,2.13,4485.6,4484.9,3.31130411]
[1756920903788,0.025,4485.8,4485.0,0.7834]
[1756920903789,0.1112,4485.4,4485.0,0.7834]
[1756920904078,0.1112,4485.4,4485.3,0.2982]
[1756920904285,2.22945556,4485.4,4485.3,0.2982]
[1756920904496,6.166337,4485.4,4485.3,0.2982]
[1756920904648,3.93688144,4485.4,4485.3,0.2982]
[1756920904853,3.1112,4485.4,4485.3,1.0816]
[1756920905448,5.34065556,4485.4,4485.3,0.7349]
[1756920907460,2.2296544,4485.0,4484.6,0.001]
[1756920907661,2.34100355,4484.7,4484.6,0.001]
[1756920907883,9.14000355,4484.7,4484.6,0.2992]
[1756920908587,3.1112,4484.7,4484.6,0.7359]
[1756920908784,5.34100355,4484.7,4484.6,1.0826]
[1756920909161,5.34100355,4484.7,4484.6,0.7359]
[1756920909662,3.1132,4484.7,4484.6,1.0826]
[1756920910250,3.1132,4484.7,4484.6,3.31245327]
[1756920910251,0.002,4484.7,4484.6,3.31245327]
[1756920910474,0.002,4484.7,4484.6,3.97789279]
[1756920914481,0.002,4484.7,4484.6,4.0962]
[1756920914680,0.002,4484.7,4484.6,4.5329]
[1756920914988,0.002,4484.7,4484.6,0.7359]
[1756920915158,0.002,4484.7,4484.6,3.31245327]
[1756920915353,0.002,4484.7,4484.6,1.0826]
[1756920915554,0.002,4484.7,4484.6,0.2992]
[1756920915801,0.002,4484.7,4484.6,0.7359]
[1756920916190,0.002,4484.7,4484.6,3.98873833]
[1756920916486,0.002,4484.7,4484.6,1.41218506]
[1756920916693,0.002,4484.7,4484.6,0.7359]
[1756920916853,0.002,4484.7,4484.6,0.2992]
[1756920917058,0.002,4484.7,4484.6,0.7359]
[1756920920300,0.002,4484.7,4484.6,0.2992]
[1756920920471,0.002,4484.7,4484.6,0.001]
[1756920921363,0.002,4484.7,4484.6,0.2992]
[1756920921586,0.002,4484.7,4484.6,0.001]
[1756920922885,0.002,4484.7,4484.6,0.2992]
[1756920923207,0.002,4484.7,4484.6,0.7359]
[1756920925704,0.002,4484.7,4484.6,0.2992]
[1756920926571,0.1132,4484.7,4484.6,0.2992]
[1756920926765,0.1132,4484.7,4484.6,2.52905327]
[1756920926967,0.002,4484.7,4484.6,0.7359]
[1756920927917,0.002,4484.7,4484.6,2.96575327]
[1756920928067,0.002,4484.7,4484.6,0.7359]
[1756920928274,0.002,4484.7,4484.6,2.96575327]
[1756920928495,0.002,4484.7,4484.6,3.9754218]
[1756920930592,0.002,4484.7,4484.6,5.02542033]
[1756920930819,0.002,4484.7,4484.6,5.0031218]
[1756920931933,0.002,4484.7,4484.6,8.7911218]
[1756920932226,0.002,4484.7,4484.6,8.7921218]
[1756920932827,0.002,4484.7,4484.6,7.6542218]
[1756920933894,0.002,4484.7,4484.6,8.7931218]
[1756920938522,0.002,4484.7,4484.6,4.6562218]
[1756920938835,0.002,4484.7,4484.6,6.31805327]
[1756920939002,0.002,4484.7,4484.6,7.57565327]
[1756920939197,0.002,4484.7,4484.6,7.92255327]
[1756920939836,0.002,4484.7,4484.6,7.11105327]
[1756920940326,0.002,4484.7,4484.6,6.31905327]
[1756920940528,0.002,4484.7,4484.6,2.34205327]
[1756920940748,0.7823,4484.7,4484.6,0.1122]
[1756920940899,1.231,4484.7,4484.6,0.1122]
[1756920941095,1.3541,4484.7,4484.6,0.001]
[1756920941295,1.3541,4484.7,4484.6,3.791]
[1756920941529,0.7823,4484.7,4484.6,3.791]
[1756920942426,1.231,4484.7,4484.6,0.001]
[1756920942636,1.231,4484.7,4484.6,3.791]
[1756920943297,1.3422,4484.7,4484.6,0.001]
[1756920943498,1.3422,4484.7,4484.6,3.79]
[1756920944299,0.1132,4484.7,4484.6,3.79]
[1756920944726,0.8935,4484.7,4484.6,3.79]
[1756920945741,1.3422,4484.7,4484.6,3.79]
[1756920946036,1.3422,4484.7,4484.6,3.788]
[1756920946220,0.8935,4484.7,4484.6,3.788]
[1756920946826,1.3422,4484.7,4484.6,3.788]
[1756920947003,1.3422,4484.7,4484.6,3.787]
[1756920947432,0.8935,4484.7,4484.6,3.787]
[1756920947806,1.3422,4484.7,4484.6,3.787]
[1756920948549,6.81799027,4484.7,4484.6,0.001]
[1756920948836,7.2989045,4484.7,4484.6,0.001]
[1756920950558,11.0859045,4484.7,4484.6,0.001]
[1756920952238,11.0849045,4484.7,4484.6,0.001]
[1756920953057,6.8502045,4484.7,4484.6,0.001]
[1756920953533,7.2989045,4484.7,4484.6,0.001]
[1756920953716,6.8502045,4484.7,4484.6,0.001]
[1756920954236,6.36929027,4484.7,4484.6,0.001]
[1756920954541,6.81799027,4484.7,4484.6,0.001]
[1756920955808,3.35918672,4484.7,4484.6,0.001]
[1756920956008,3.002,4484.7,4484.6,0.3155]
[1756920956750,0.002,4484.7,4484.6,4.5651]
[1756920956914,0.002,4484.7,4484.6,0.3155]
[1756920957635,0.002,4484.7,4484.6,0.7811]
[1756920958249,0.298,4484.7,4484.6,0.001]
[1756920958548,3.12330355,4484.7,4484.6,0.001]
[1756920958848,0.1132,4484.7,4484.6,0.7811]
[1756920959420,0.1132,4484.7,4484.6,0.3155]
[1756920960629,0.4239,4484.7,4484.6,0.001]
[1756920961017,0.1132,4484.7,4484.6,0.001]
[1756920961218,0.1132,4484.7,4484.6,0.3015]
[1756920961445,0.1132,4484.7,4484.6,0.7425]
[1756920962250,2.65370355,4484.7,4484.6,0.001]
[1756920962454,7.09154006,4484.7,4484.6,0.001]
[1756920963333,6.64014006,4484.7,4484.6,0.001]
[1756920965044,4.41033651,4484.7,4484.6,0.001]
[1756920965246,3.1132,4484.7,4484.6,0.3015]
[1756920965455,3.002,4484.7,4484.6,0.7425]
[1756920965657,0.002,4484.7,4484.6,0.7425]
[1756920965857,0.002,4484.7,4484.6,3.42550327]
[1756920966019,0.002,4484.7,4484.6,7.6978018]
[1756920966372,0.002,4484.7,4484.6,3.42550327]
[1756920966530,0.002,4484.7,4484.6,3.77240327]
[1756920966734,0.002,4484.7,4484.6,3.88360327]
[1756920967255,0.002,4484.7,4484.6,7.32470327]
[1756920968062,0.002,4484.7,4484.6,7.67160327]
[1756920970549,0.002,4484.7,4484.6,3.53670327]
[1756920970746,0.002,4484.7,4484.6,5.09285]
[1756920971152,0.002,4484.7,4484.6,1.30685]
[1756920971456,0.8108,4484.7,4484.6,3.785]
[1756920971833,0.8108,4484.7,4484.6,0.001]
[1756920972035,0.8108,4484.7,4484.6,3.786]
[1756920972441,0.8108,4484.7,4484.6,0.001]
[1756920972657,0.8108,4484.7,4484.6,3.786]
[1756920973262,3.04060355,4484.7,4484.6,0.001]
[1756920973475,3.60320355,4484.7,4484.6,3.785]
[1756920973762,0.922,4484.7,4484.6,3.785]
[1756920974070,0.1132,4484.7,4484.6,3.785]
[1756920974237,0.002,4484.7,4484.6,4.5265]
[1756920974644,0.002,4484.7,4484.6,4.0855]
[1756920974852,0.3127,4484.7,4484.6,0.001]
[1756920975034,0.8108,4484.7,4484.6,3.786]
[1756920976166,0.8108,4484.7,4484.6,0.001]
[1756920976470,0.8108,4484.7,4484.6,4.0865]
[1756920976471,0.002,4484.7,4484.6,4.0865]
[1756920977139,0.002,4484.7,4484.6,4.5275]
[1756920977536,0.002,4484.7,4484.6,4.0865]
[1756920979174,0.002,4484.7,4484.6,3.786]
[1756920979346,0.3127,4484.7,4484.6,3.786]
[1756920979555,0.002,4484.7,4484.6,3.786]
[1756920979880,0.002,4484.7,4484.6,4.0865]
[1756920980237,0.002,4484.7,4484.6,4.5275]
[1756920980442,0.002,4484.7,4484.6,6.75735327]
[1756920980637,0.002,4484.7,4484.6,6.75335327]
[1756920981270,0.002,4484.7,4484.6,8.00970125]
[1756920981773,0.002,4484.7,4484.6,7.66280125]
[1756920983669,0.002,4484.7,4484.6,3.88180125]
[1756920983970,0.002,4484.7,4484.6,7.66180125]
[1756920984181,0.002,4484.7,4484.6,11.91180125]
[1756920985355,0.002,4484.7,4484.6,8.13180125]
[1756920985555,0.002,4484.7,4484.6,11.91080125]
[1756920985954,0.002,4484.7,4484.6,9.27070125]
[1756920986274,0.002,4485.6,4485.5,3.02140586]
[1756920986462,0.002,4485.6,4485.5,16.87340586]
[1756920986775,0.002,4485.6,4485.5,18.07300586]
[1756920986973,0.002,4485.6,4485.5,20.34091383]
[1756920988968,0.002,4485.6,4485.5,16.56091383]
[1756920989158,0.002,4485.6,4485.5,19.99401383]
[1756920989482,0.002,4485.6,4485.5,16.99401383]
[1756920990274,0.002,4485.6,4485.5,17.34091383]
[1756920990476,0.002,4485.6,4485.5,16.99201383]
[1756920990659,0.002,4485.6,4485.5,13.21401383]
[1756920990860,0.002,4485.6,4485.5,16.99201383]
[1756920991697,0.002,4485.6,4485.5,21.24201383]
[1756920992790,0.002,4485.6,4485.5,21.58891383]
[1756920993855,0.002,4485.6,4485.5,21.24101383]
[1756920994271,0.002,4485.6,4485.5,17.46401383]
[1756920994603,0.002,4485.6,4485.5,21.24101383]
[1756920994882,0.002,4485.6,4485.5,21.23751383]
[1756920997283,0.002,4486.1,4486.0,3.02115737]
[1756920997454,0.002,4486.1,4486.0,9.93164894]
[1756920997654,0.025,4486.8,4486.5,3.02090894]
[1756920997862,0.025,4486.8,4486.5,8.53419802]
[1756920998072,0.025,4486.8,4486.5,9.37200894]
[1756920998385,0.025,4486.8,4486.5,10.28145692]
[1756921000573,0.025,4486.8,4486.5,6.50445692]
[1756921000782,0.025,4486.8,4486.5,10.28145692]
[1756921000959,0.025,4486.8,4486.5,6.50445692]
[1756921001388,0.025,4486.8,4486.5,8.74055692]
[1756921001561,0.3088,4486.6,4486.5,8.74055692]
[1756921001953,0.3088,4486.6,4486.5,9.53255692]
[1756921002169,0.002,4486.6,4486.5,9.53255692]
[1756921002588,0.002,4486.6,4486.5,9.39841192]
[1756921002987,0.3088,4486.6,4486.5,5.62141192]
[1756921003170,0.3088,4486.6,4486.5,9.39841192]
[1756921003367,0.002,4486.6,4486.5,9.39841192]
[1756921003557,0.002,4486.6,4486.5,9.70981192]
[1756921003758,0.002,4486.6,4486.5,9.70881192]
[1756921003989,0.002,4486.6,4486.5,9.39741192]
[1756921004187,0.7971,4486.6,4486.5,9.39741192]
[1756921005285,0.002,4486.6,4486.5,9.39741192]
[1756921005479,0.002,4486.6,4486.5,9.87141192]
[1756921005676,0.002,4486.6,4486.5,9.70881192]
[1756921005854,0.002,4486.6,4486.5,10.14631192]
[1756921006055,0.002,4486.6,4486.5,10.49321192]
[1756921006881,0.002,4486.6,4486.5,10.14631192]
[1756921007592,0.002,4486.6,4486.5,23.59609742]
[1756921009662,0.002,4486.6,4486.5,23.59709742]
[1756921011193,0.002,4486.6,4486.5,27.84709742]
[1756921012010,0.002,4486.6,4486.5,34.84709742]
[1756921013210,0.002,4486.6,4486.5,27.84709742]
[1756921013612,0.002,4486.6,4486.5,31.07109742]
[1756921013814,0.002,4486.6,4486.5,34.84709742]
[1756921014108,0.002,4486.6,4486.5,27.84709742]
[1756921014909,0.002,4486.6,4486.5,34.84709742]
[1756921015305,0.3088,4486.6,4486.5,13.64841192]
[1756921015613,1.2288,4486.6,4486.5,12.08110894]
[1756921016692,0.7971,4486.6,4486.5,12.08110894]
[1756921017182,1.2288,4486.6,4486.5,8.30510894]
[1756921017381,1.2288,4486.6,4486.5,12.08110894]
[1756921018521,1.2288,4486.6,4486.5,8.30510894]
[1756921018917,1.2288,4486.6,4486.5,12.08010894]
[1756921019114,1.2288,4486.6,4486.5,8.30510894]
[1756921019416,1.2288,4486.6,4486.5,12.08010894]
[1756921020426,1.35418,4486.6,4486.5,6.0762]
[1756921020716,3.58303926,4486.6,4486.5,0.001]
[1756921020889,7.06369384,4486.6,4486.5,0.001]
[1756921021496,7.06369384,4486.6,4486.5,3.776]
[1756921022586,7.06369384,4486.6,4486.5,0.001]
[1756921022804,7.06369384,4486.6,4486.5,3.777]
[1756921023526,6.58303926,4486.6,4486.5,0.001]
[1756921030650,6.69423926,4486.6,4486.5,0.001]
[1756921033744,6.26253926,4486.6,4486.5,0.001]
[1756921033963,6.13715926,4486.6,4486.5,0.001]
[1756921034422,0.1132,4486.6,4486.5,0.3047]
[1756921034616,0.1132,4486.6,4486.5,0.001]
[1756921034617,2.64885926,4486.6,4486.5,0.001]
[1756921034816,3.10215926,4486.6,4486.5,3.777]
[1756921035023,3.10215926,4486.6,4486.5,0.001]
[1756921035419,3.56905926,4486.6,4486.5,0.001]
[1756921035718,3.10215926,4486.6,4486.5,0.001]
[1756921037714,3.56905926,4486.6,4486.5,0.001]
[1756921040022,3.10215926,4486.6,4486.5,0.001]
[1756921040222,2.64885926,4486.6,4486.5,0.001]
[1756921040422,3.10215926,4486.6,4486.5,0.001]
[1756921041167,3.56905926,4486.6,4486.5,0.001]
[1756921041490,4.15134189,4486.6,4486.5,0.001]
[1756921041893,7.15134189,4486.6,4486.5,0.001]
[1756921042790,6.37764189,4486.6,4486.5,0.001]
[1756921042992,6.68444189,4486.6,4486.5,0.001]
[1756921043807,7.15134189,4486.6,4486.5,0.001]
[1756921044863,11.40658941,4486.6,4486.5,0.001]
[1756921045057,11.40658941,4486.6,4486.0,0.001]
[1756921045058,2.22910768,4486.1,4486.0,0.001]
[1756921045294,2.22930646,4485.7,4485.6,0.001]
[1756921045505,11.14844108,4485.7,4485.6,0.001]
[1756921045712,12.06864108,4485.7,4485.6,0.001]
[1756921046077,12.17984108,4485.7,4485.6,0.001]
[1756921047589,7.04775398,4485.7,4485.6,0.001]
[1756921047901,8.41998343,4485.7,4485.6,0.001]
[1756921051230,9.21198343,4485.7,4485.6,0.001]
[1756921052042,7.95308343,4485.7,4485.6,0.001]
[1756921052220,7.84188343,4485.7,4485.6,0.001]
[1756921053042,8.30938343,4485.7,4485.6,0.001]
[1756921054333,7.84188343,4485.7,4485.6,0.001]
[1756921054621,8.30938343,4485.7,4485.6,0.001]
[1756921055415,9.10138343,4485.7,4485.6,0.001]
[1756921057121,12.87738343,4485.7,4485.6,0.001]
[1756921057689,8.30938343,4485.7,4485.6,0.001]
[1756921057890,7.84188343,4485.7,4485.6,0.001]
[1756921058120,11.61788343,4485.7,4485.6,0.001]
[1756921058322,12.87738343,4485.7,4485.6,0.001]
[1756921059126,5.22935616,4485.6,4484.6,0.001]
[1756921059330,19.4929861,4484.7,4484.6,0.001]
[1756921059628,24.05733362,4484.7,4484.6,0.001]
[1756921059794,24.99843362,4484.7,4484.6,0.001]
[1756921060195,20.43043362,4484.7,4484.6,0.001]
[1756921060507,2.71005107,4484.7,4484.6,0.7615]
[1756921060693,3.776,4485.0,4484.6,0.7615]
[1756921060899,6.00555684,4485.2,4485.1,0.001]
[1756921061100,6.00555684,4485.2,4485.1,0.314]
[1756921061101,6.85352915,4485.2,4485.1,0.314]
[1756921061497,2.70882119,4485.2,4485.1,0.314]
[1756921061727,2.22955498,4485.2,4485.1,0.7615]
[1756921061929,2.2294406,4485.5,4485.1,0.7615]
[1756921062129,0.1112,4485.2,4485.1,0.7615]